bitfinex-derivatives/quotes_BTCF0:USTF0_20250926
["timestamp","ask_amount","ask_price","bid_price","bid_amount"]
[1758865241527,1.12365768,109370.0,109360.0,0.76902138]
[1758865245438,1.03228068,109370.0,109360.0,0.76902138]
[1758865245624,0.83364,109370.0,109360.0,0.76902138]
[1758865248737,0.925017,109370.0,109360.0,0.76902138]
[1758865248938,0.925017,109370.0,109360.0,0.67763608]
[1758865249137,1.12365768,109370.0,109360.0,0.67763608]
[1758865249639,1.12365768,109370.0,109360.0,0.76902138]
[1758865257247,1.12365768,109370.0,109360.0,0.68675598]
[1758865260849,1.03228068,109370.0,109360.0,0.68675598]
[1758865261747,0.83356,109370.0,109360.0,0.68675598]
[1758865263647,0.83356,109370.0,109360.0,0.8014036]
[1758865264250,0.83348,109370.0,109360.0,0.8014036]
[1758865266538,0.83348,109370.0,109360.0,0.68675598]
[1758865266738,0.83348,109370.0,109360.0,0.8014036]
[1758865266945,0.00092,109370.0,109360.0,1.49148121]
[1758865267642,0.00092,109370.0,109360.0,2.32400121]
[1758865271452,0.00092,109370.0,109360.0,2.39865995]
[1758865271852,0.72315689,109400.0,109390.0,0.03426]
[1758865272055,1.75431757,109400.0,109390.0,0.03426]
[1758865273052,1.35703621,109400.0,109390.0,0.03426]
[1758865273254,0.16371621,109400.0,109390.0,0.03426]
[1758865273553,1.20783689,109400.0,109390.0,0.03426]
[1758865274147,1.20783689,109400.0,109390.0,0.19138008]
[1758865274851,1.21283689,109400.0,109390.0,0.19138008]
[1758865275055,1.12147949,109400.0,109390.0,0.19138008]
[1758865275257,0.92283881,109400.0,109390.0,0.19138008]
[1758865275459,1.12147949,109400.0,109390.0,0.19138008]
[1758865275659,1.11947949,109400.0,109390.0,0.19138008]
[1758865276256,1.21083149,109400.0,109390.0,0.19138008]
[1758865277659,0.37835149,109400.0,109390.0,0.19138008]
[1758865277957,1.21079149,109400.0,109390.0,0.19138008]
[1758865278852,1.40943217,109400.0,109390.0,0.10001968]
[1758865279053,1.40935217,109400.0,109390.0,0.10001968]
[1758865279561,0.57691217,109400.0,109390.0,0.10001968]
[1758865279761,1.40935217,109400.0,109390.0,0.10001968]
[1758865280661,1.40935217,109400.0,109390.0,0.19138008]
[1758865282864,1.40935217,109400.0,109390.0,0.10001968]
[1758865286565,1.01207081,109400.0,109390.0,0.10001968]
[1758865286768,1.40935217,109400.0,109390.0,0.10001968]
[1758865290668,1.77015217,109400.0,109390.0,0.10001968]
[1758865292569,1.96860405,109400.0,109390.0,0.10001968]
[1758865294268,1.13612405,109400.0,109390.0,0.09997968]
[1758865294464,1.96852405,109400.0,109390.0,0.09997968]
[1758865294975,1.13612405,109400.0,109390.0,0.09997968]
[1758865295161,1.96852405,109400.0,109390.0,0.09997968]
[1758865318187,1.96852405,109400.0,109390.0,0.03422]
[1758865320181,1.96852405,109400.0,109390.0,0.09997968]
[1758865320486,1.96840405,109400.0,109390.0,0.09997968]
[1758865326198,1.13612405,109400.0,109390.0,0.09997968]
[1758865326389,1.96836405,109400.0,109390.0,0.09997968]
[1758865329098,1.96836405,109400.0,109390.0,0.03422]
[1758865344717,1.96836405,109400.0,109390.0,0.10003586]
[1758865345311,1.96836405,109400.0,109390.0,0.07872586]
[1758865347812,1.96836405,109400.0,109390.0,0.06581586]
[1758865348919,1.96836405,109400.0,109390.0,0.07885586]
[1758865350915,2.66623067,109400.0,109390.0,0.06581586]
[1758865351222,0.0913603,109390.0,109380.0,0.01304]
[1758865351425,1.04789354,109390.0,109380.0,0.01304]
[1758865353224,1.05489354,109390.0,109380.0,0.01304]
[1758865354323,1.05689354,109390.0,109380.0,0.01292]
[1758865354516,0.85845298,109390.0,109380.0,0.01292]
[1758865355427,0.69291483,109390.0,109380.0,0.01292]
[1758865360324,0.69291483,109390.0,109380.0,0.03398]
[1758865362933,0.69291483,109390.0,109380.0,0.01292]
[1758865365334,0.69291483,109390.0,109380.0,0.03398]
[1758865365635,1.52491483,109390.0,109380.0,0.03398]
[1758865373128,1.2931203,109390.0,109380.0,0.66573453]
[1758865373439,1.2931203,109390.0,109380.0,0.43398]
[1758865374038,1.52487483,109390.0,109380.0,0.43398]
[1758865374537,1.16407483,109390.0,109380.0,0.43398]
[1758865374941,1.16407483,109390.0,109380.0,0.5253486]
[1758865375143,0.9323203,109390.0,109380.0,0.5253486]
[1758865375944,0.9323203,109390.0,109380.0,0.75710313]
[1758865376143,0.9323203,109390.0,109380.0,1.11790313]
[1758865376446,0.9323203,109390.0,109380.0,0.75710313]
[1758865377047,0.9323203,109390.0,109380.0,0.5253486]
[1758865377441,0.9323203,109390.0,109380.0,0.8861486]
[1758865378145,1.16407483,109390.0,109380.0,0.8861486]
[1758865380549,0.009,109390.0,109380.0,1.11790313]
[1758865380749,0.81072,109390.0,109380.0,1.20932334]
[1758865381243,0.009,109390.0,109380.0,1.44107787]
[1758865381550,0.32309373,109420.0,109410.0,0.1267436]
[1758865381745,0.9427392,109420.0,109410.0,0.0354]
[1758865382047,1.17449373,109420.0,109410.0,0.0354]
[1758865383351,1.24699999,109420.0,109410.0,0.0354]
[1758865383648,1.27199999,109420.0,109410.0,0.0354]
[1758865383849,1.27799999,109420.0,109410.0,0.0354]
[1758865384239,1.27787999,109420.0,109410.0,0.0354]
[1758865394760,1.04612546,109420.0,109410.0,0.0354]
[1758865394961,1.27787999,109420.0,109410.0,0.0354]
[1758865395961,1.27187999,109420.0,109410.0,0.0354]
[1758865396156,1.27587999,109420.0,109410.0,0.0354]
[1758865396760,1.26387999,109420.0,109410.0,0.0354]
[1758865400970,1.03212546,109420.0,109410.0,0.0354]
[1758865401170,1.26387999,109420.0,109410.0,0.0354]
[1758865413782,1.26387999,109420.0,109410.0,0.01361]
[1758865414582,1.56153282,109420.0,109410.0,0.01361]
[1758865417880,0.54152546,109420.0,109410.0,0.30163368]
[1758865418082,0.54152546,109420.0,109410.0,0.39297758]
[1758865418083,1.63766914,109420.0,109410.0,0.39297758]
[1758865418775,1.63766914,109420.0,109410.0,0.30163368]
[1758865419175,1.27686914,109420.0,109410.0,0.30163368]
[1758865419581,1.90237282,109420.0,109410.0,0.03693]
[1758865420082,1.90237282,109420.0,109410.0,0.01361]
[1758865423377,1.90237282,109420.0,109410.0,0.03693]
[1758865425482,1.90237282,109420.0,109410.0,0.30163368]
[1758865425483,1.63762914,109420.0,109410.0,0.30163368]
[1758865428983,1.63762914,109420.0,109410.0,0.39297758]
[1758865430080,1.63762914,109420.0,109410.0,0.30163368]
[1758865430586,1.63762914,109420.0,109410.0,0.03693]
[1758865430784,1.63762914,109420.0,109410.0,0.30163368]
[1758865433384,1.63762914,109420.0,109410.0,0.03693]
[1758865433585,1.63762914,109420.0,109410.0,0.30163368]
[1758865433790,1.90233282,109420.0,109410.0,0.30163368]
[1758865437696,1.63762914,109420.0,109410.0,0.30163368]
[1758865438092,1.90233282,109420.0,109410.0,0.30163368]
[1758865438394,1.37292546,109420.0,109410.0,0.30163368]
[1758865438695,1.90233282,109420.0,109410.0,0.30163368]
[1758865441096,1.90233282,109420.0,109410.0,0.03693]
[1758865441297,1.90233282,109420.0,109410.0,0.30163368]
[1758865441595,1.90233282,109420.0,109410.0,0.03693]
[1758865448499,1.90233282,109420.0,109410.0,0.30163368]
[1758865449608,1.90233282,109420.0,109410.0,0.03693]
[1758865450703,1.54153282,109420.0,109410.0,0.03693]
[1758865451004,1.90233282,109420.0,109410.0,0.03693]
[1758865452000,1.37292546,109420.0,109410.0,0.03693]
[1758865452206,1.90233282,109420.0,109410.0,0.03693]
[1758865453208,1.90233282,109420.0,109410.0,0.30163368]
[1758865454816,1.90233282,109420.0,109410.0,0.03693]
[1758865455008,1.90233282,109420.0,109410.0,0.30163368]
[1758865459409,1.90233282,109420.0,109410.0,0.01361]
[1758865459607,2.66313282,109420.0,109410.0,0.01361]
[1758865459809,1.83173282,109420.0,109410.0,0.01361]
[1758865460118,2.66297282,109420.0,109410.0,0.01361]
[1758865475729,2.68150298,109420.0,109410.0,0.01361]
[1758865476527,2.41681959,109420.0,109410.0,0.01361]
[1758865478134,2.68154356,109420.0,109410.0,0.01361]
[1758865479427,2.28154356,109420.0,109410.0,0.01361]
[1758865481630,0.92085562,109420.0,109410.0,0.01361]
[1758865481836,2.01673959,109420.0,109410.0,0.03511]
[1758865487042,1.18557959,109420.0,109410.0,0.03511]
[1758865487345,2.01669959,109420.0,109410.0,0.03511]
[1758865493546,1.75197562,109420.0,109410.0,0.03511]
[1758865493746,2.01669959,109420.0,109410.0,0.03511]
[1758865495844,2.01669959,109420.0,109410.0,0.01361]
[1758865500951,0.81110626,109420.0,109410.0,0.69978397]
[1758865501260,0.08950626,109420.0,109410.0,1.41665184]
[1758865501447,0.84804,109420.0,109410.0,1.15192787]
[1758865501649,0.84804,109420.0,109410.0,0.79112787]
[1758865502449,0.017,109420.0,109410.0,0.79112787]
[1758865502651,0.017,109420.0,109410.0,1.50804698]
[1758865503944,0.71683967,109450.0,109440.0,0.03476]
[1758865504150,1.53735967,109450.0,109440.0,0.03476]
[1758865504556,1.61032089,109450.0,109440.0,0.03476]
[1758865505952,1.61832089,109450.0,109440.0,0.03476]
[1758865506155,1.65976089,109450.0,109440.0,0.03476]
[1758865508661,1.29896089,109450.0,109440.0,0.03476]
[1758865508857,1.65976089,109450.0,109440.0,0.03476]
[1758865509455,1.65976089,109450.0,109440.0,0.1260789]
[1758865509662,1.56836519,109450.0,109440.0,0.1260789]
[1758865510360,1.56836519,109450.0,109440.0,0.4868789]
[1758865510361,1.20752519,109450.0,109440.0,0.4868789]
[1758865510556,1.20752519,109450.0,109440.0,0.1260789]
[1758865510860,0.94180122,109450.0,109440.0,0.1260789]
[1758865511156,1.65863569,109450.0,109440.0,0.03476]
[1758865511367,1.92335966,109450.0,109440.0,0.01331]
[1758865511765,1.92335966,109450.0,109430.0,0.01331]
[1758865511766,0.0913189,109440.0,109430.0,0.01331]
[1758865511953,0.0913272,109430.0,109420.0,0.01331]
[1758865512155,0.0913356,109420.0,109410.0,0.01361]
[1758865512361,0.35605957,109420.0,109410.0,0.01361]
[1758865512563,0.71685957,109420.0,109410.0,0.01361]
[1758865513065,0.98158354,109420.0,109410.0,0.01361]
[1758865513656,0.71685957,109420.0,109410.0,0.01361]
[1758865514164,0.71985957,109420.0,109410.0,0.01361]
[1758865514862,0.0913439,109410.0,109400.0,0.01359]
[1758865515067,1.81243184,109410.0,109400.0,0.01359]
[1758865515360,1.2829839,109410.0,109400.0,0.01359]
[1758865515665,1.81243184,109410.0,109400.0,0.01359]
[1758865515866,1.54470787,109410.0,109400.0,0.0349]
[1758865516258,1.54670787,109410.0,109400.0,0.0349]
[1758865516962,1.54670787,109410.0,109400.0,0.0379]
[1758865518571,1.62431576,109410.0,109400.0,0.0349]
[1758865519265,1.63031576,109410.0,109400.0,0.0349]
[1758865519463,1.63031576,109410.0,109400.0,0.01359]
[1758865519664,1.89503973,109410.0,109400.0,0.01359]
[1758865519870,1.89303973,109410.0,109400.0,0.01359]
[1758865520168,1.89803973,109410.0,109400.0,0.01359]
[1758865521161,0.0913523,109400.0,109390.0,0.01359]
[1758865521462,0.0913606,109390.0,109380.0,0.01359]
[1758865521665,1.54804457,109390.0,109380.0,0.01359]
[1758865523562,1.54804457,109390.0,109380.0,0.01459]
[1758865525066,1.55004457,109390.0,109380.0,0.01459]
[1758865527269,0.71888457,109390.0,109380.0,0.01459]
[1758865529671,1.38360854,109390.0,109380.0,0.001]
[1758865530060,1.11888457,109390.0,109380.0,0.001]
[1758865530462,1.95008457,109390.0,109380.0,0.001]
[1758865531170,1.55016457,109390.0,109380.0,0.03811]
[1758865533871,1.55020457,109390.0,109380.0,0.03811]
[1758865534268,1.55020457,109390.0,109380.0,0.03807]
[1758865535665,0.71888457,109390.0,109380.0,0.03807]
[1758865535870,1.2854806,109390.0,109380.0,0.03807]
[1758865536071,1.55020457,109390.0,109380.0,0.03807]
[1758865537371,0.83332,109390.0,109380.0,0.79416287]
[1758865537575,0.9246806,109390.0,109380.0,0.79416287]
[1758865537775,0.9246806,109390.0,109380.0,0.5294389]
[1758865537965,1.18940457,109390.0,109380.0,0.5294389]
[1758865538666,1.18946145,109390.0,109380.0,0.79421975]
[1758865539177,1.18946145,109390.0,109380.0,0.5294389]
[1758865539377,1.18946145,109390.0,109380.0,0.43807]
[1758865539675,1.18946145,109390.0,109380.0,0.03807]
[1758865543173,1.4542423,109390.0,109380.0,0.01493]
[1758865543381,1.8150423,109390.0,109380.0,0.01493]
[1758865543577,1.55026145,109390.0,109380.0,0.01493]
[1758865545578,2.23902923,109390.0,109380.0,0.00096]
[1758865550582,2.23902923,109390.0,109380.0,0.01493]
[1758865555772,1.70946753,109390.0,109380.0,0.01493]
[1758865555979,2.23902923,109390.0,109380.0,0.01493]
[1758865563895,2.23902923,109390.0,109380.0,0.03752]
[1758865564097,0.74292838,109390.0,109380.0,0.03752]
[1758865564288,1.57416838,109390.0,109380.0,0.03752]
[1758865564593,1.55018145,109390.0,109380.0,0.03752]
[1758865565992,1.8149623,109390.0,109380.0,0.03752]
[1758865566585,1.55018145,109390.0,109380.0,0.03752]
[1758865567794,1.8149623,109390.0,109380.0,0.03752]
[1758865570598,1.8149623,109390.0,109380.0,0.01493]
[1758865570899,2.07974315,109390.0,109380.0,0.00096]
[1758865571198,2.1757623,109390.0,109380.0,0.00096]
[1758865574392,1.6462006,109390.0,109380.0,0.00096]
[1758865574598,2.1757623,109390.0,109380.0,0.01398]
[1758865575796,1.3445223,109390.0,109380.0,0.01398]
[1758865576192,2.1803223,109390.0,109380.0,0.01398]
[1758865576993,2.84506315,109390.0,109380.0,0.00096]
[1758865577197,2.84498315,109390.0,109380.0,0.00096]
[1758865577396,2.5801623,109390.0,109380.0,0.00096]
[1758865578192,1.7445223,109390.0,109380.0,0.00096]
[1758865578398,2.5800823,109390.0,109380.0,0.00096]
[1758865585603,2.6042868,109390.0,109380.0,0.00096]
[1758865586901,2.5800823,109390.0,109380.0,0.00096]
[1758865587304,2.0505206,109390.0,109380.0,0.00096]
[1758865587504,2.5800823,109390.0,109380.0,0.00096]
[1758865588599,2.60428676,109390.0,109380.0,0.00096]
[1758865593509,2.60428676,109390.0,109380.0,0.01375]
[1758865594604,2.5800823,109390.0,109380.0,0.01375]
[1758865596113,2.60428953,109390.0,109380.0,0.01375]
[1758865596612,2.60428953,109390.0,109380.0,0.00096]
[1758865598713,2.58029168,109390.0,109380.0,0.00096]
[1758865599515,2.18029168,109390.0,109380.0,0.00096]
[1758865599715,2.20450298,109390.0,109380.0,0.00096]
[1758865609122,2.20450298,109390.0,109380.0,1e-07]
[1758865609322,0.0913773,109370.0,109360.0,0.01359]
[1758865609622,1.55498284,109370.0,109360.0,0.01359]
[1758865610624,1.55498284,109370.0,109360.0,0.01459]
[1758865611925,1.55498284,109370.0,109360.0,0.02559]
[1758865612522,1.62945932,109370.0,109360.0,0.02559]
[1758865612814,1.62945932,109370.0,109360.0,0.04882]
[1758865613422,1.63856655,109370.0,109360.0,0.04882]
[1758865613623,0.80064655,109370.0,109360.0,0.04882]
[1758865613825,1.63321932,109370.0,109360.0,0.44882]
[1758865616419,0.52665378,109370.0,109360.0,0.44882]
[1758865616625,1.63325932,109370.0,109360.0,0.44882]
[1758865616821,1.36837378,109370.0,109360.0,0.44882]
[1758865617024,1.63325932,109370.0,109360.0,0.44882]
[1758865620119,0.0913938,109350.0,109340.0,0.02631834]
[1758865620327,0.0914022,109340.0,109330.0,0.00615]
[1758865620518,1.34277328,109340.0,109330.0,0.00615]
[1758865621318,0.0914108,109330.0,109320.0,0.01316]
[1758865621520,1.82474188,109330.0,109320.0,0.01316]
[1758865622226,1.84356452,109330.0,109320.0,0.01316]
[1758865622420,0.0894191,109320.0,109310.0,0.01316]
[1758865622618,0.97999018,109320.0,109310.0,0.01316]
[1758865622815,0.97899018,109320.0,109310.0,0.01316]
[1758865623628,0.97899018,109320.0,109310.0,0.01416]
[1758865624331,0.97899018,109320.0,109310.0,0.001]
[1758865624724,0.0914269,109310.0,109300.0,0.01316]
[1758865625030,1.8982928,109310.0,109300.0,0.01316]
[1758865626027,1.8982928,109310.0,109300.0,0.4131]
[1758865626028,0.43453482,109310.0,109300.0,0.4131]
[1758865626227,1.63344756,109310.0,109300.0,0.43637]
[1758865626730,1.64044756,109310.0,109300.0,0.4151]
[1758865627029,1.64044756,109310.0,109300.0,0.43437]
[1758865627232,1.64144756,109310.0,109300.0,0.43437]
[1758865628133,1.37656202,109310.0,109300.0,0.43437]
[1758865628322,1.64144756,109310.0,109300.0,0.43437]
[1758865629024,1.64144756,109310.0,109300.0,0.4131]
[1758865629231,0.0914355,109300.0,109290.0,0.01316]
[1758865629432,0.98200658,109300.0,109290.0,0.01316]
[1758865629623,0.71712104,109300.0,109290.0,0.03443]
[1758865630928,0.71812104,109300.0,109290.0,0.03443]
[1758865639141,0.71812104,109300.0,109290.0,0.03439]
[1758865648152,0.7426161,109300.0,109290.0,0.03439]
[1758865649054,0.7426161,109300.0,109290.0,0.1258339]
[1758865649258,1.5848561,109300.0,109290.0,0.5258339]
[1758865650357,1.5848561,109300.0,109290.0,0.43439]
[1758865654160,1.5848161,109300.0,109290.0,0.43435]
[1758865655454,1.5848161,109300.0,109290.0,0.01308]
[1758865655956,1.5848161,109300.0,109290.0,0.03539]
[1758865660163,1.5848161,109300.0,109290.0,0.01308]
[1758865660663,1.85047772,109300.0,109290.0,0.03539]
[1758865661557,1.85047772,109300.0,109290.0,0.01308]
[1758865661558,2.1157513,109300.0,109290.0,0.01308]
[1758865661764,1.85047772,109300.0,109290.0,0.01308]
[1758865662161,1.31993056,109300.0,109290.0,0.01308]
[1758865662664,1.85047772,109300.0,109290.0,0.03539]
[1758865662865,2.1157513,109300.0,109290.0,0.01308]
[1758865663164,1.85047772,109300.0,109290.0,0.01308]
[1758865663365,1.31993056,109300.0,109290.0,0.03539]
[1758865663565,1.85047772,109300.0,109290.0,0.03539]
[1758865664262,1.31993056,109300.0,109290.0,0.03539]
[1758865664465,1.85047772,109300.0,109290.0,0.03539]
[1758865668866,1.85043772,109300.0,109290.0,0.03539]
[1758865669067,1.85043772,109300.0,109290.0,0.03535]
[1758865669776,1.31989056,109300.0,109290.0,0.03535]
[1758865669975,1.85043772,109300.0,109290.0,0.03535]
[1758865671572,1.85043772,109300.0,109290.0,0.01304]
[1758865671776,2.1157113,109300.0,109290.0,0.01304]
[1758865671973,1.85043772,109300.0,109290.0,0.01304]
[1758865672774,0.0914439,109290.0,109280.0,0.01316]
[1758865672980,0.98279106,109290.0,109280.0,0.01316]
[1758865673275,0.98279106,109290.0,109280.0,0.03547]
[1758865674569,0.4522439,109290.0,109280.0,0.03547]
[1758865674771,0.71751748,109290.0,109280.0,0.03547]
[1758865675174,0.71751748,109290.0,109280.0,0.43547]
[1758865675481,1.56259748,109290.0,109280.0,0.43747]
[1758865675981,1.56759748,109290.0,109280.0,0.43747]
[1758865676279,1.56859748,109290.0,109280.0,0.43547]
[1758865678076,1.83387106,109290.0,109280.0,0.43547]
[1758865679890,1.85212169,109290.0,109280.0,0.41316]
[1758865680381,1.85212169,109290.0,109280.0,0.01316]
[1758865681569,1.32157453,109290.0,109280.0,0.03427]
[1758865681781,1.85212169,109290.0,109280.0,0.03427]
[1758865684183,1.85212169,109290.0,109280.0,0.01312]
[1758865684487,1.85212169,109290.0,109280.0,0.0357]
[1758865685186,1.85212169,109290.0,109280.0,0.01312]
[1758865685689,1.85212169,109290.0,109280.0,0.0357]
[1758865686987,1.85212169,109290.0,109280.0,0.01312]
[1758865687188,0.0914523,109280.0,109270.0,0.28757104]
[1758865687489,0.62199946,109280.0,109270.0,0.28757104]
[1758865688785,0.62199946,109280.0,109270.0,0.28857104]
[1758865689288,0.0914523,109280.0,109270.0,0.28857104]
[1758865689487,0.62199946,109280.0,109270.0,0.28857104]
[1758865693687,1.46931946,109280.0,109270.0,0.28857104]
[1758865694686,0.9387723,109280.0,109270.0,0.28857104]
[1758865694896,1.46931946,109280.0,109270.0,0.28857104]
[1758865697895,0.9387723,109280.0,109270.0,0.28857104]
[1758865698191,1.46955946,109280.0,109270.0,0.91464462]
[1758865699594,0.9390123,109280.0,109270.0,0.91464462]
[1758865699794,1.46955946,109280.0,109270.0,0.91464462]
[1758865700796,1.46955946,109280.0,109270.0,1.00610512]
[1758865701596,0.71750898,109300.0,109290.0,0.03573]
[1758865701792,1.83098256,109300.0,109290.0,0.03573]
[1758865702995,1.84198256,109300.0,109290.0,0.03573]
[1758865703196,1.3114354,109300.0,109290.0,0.03573]
[1758865703396,1.84198256,109300.0,109290.0,0.03573]
[1758865704393,1.84398256,109300.0,109290.0,0.03573]
[1758865705596,0.0914437,109290.0,109280.0,0.091452]
[1758865705797,0.35671728,109290.0,109280.0,0.091452]
[1758865707195,1.56983728,109290.0,109280.0,0.4]
[1758865707597,1.57083728,109290.0,109280.0,0.4]
[1758865708295,1.83611086,109290.0,109280.0,0.4]
[1758865709303,1.3055637,109290.0,109280.0,0.4]
[1758865709493,1.83611086,109290.0,109270.0,0.70414614]
[1758865709689,0.53054716,109280.0,109270.0,0.96941972]
[1758865709890,0.53054716,109280.0,109270.0,1.06092358]
[1758865710697,0.62199926,109280.0,109270.0,0.83064]
[1758865710899,0.62199926,109280.0,109270.0,1.09591358]
[1758865711098,0.62199926,109280.0,109270.0,0.83064]
[1758865711299,0.62199926,109280.0,109270.0,0.83164]
[1758865713199,0.62199926,109280.0,109270.0,1.09691358]
[1758865713398,0.62199926,109280.0,109270.0,0.83164]
[1758865713600,0.62199926,109280.0,109270.0,1.09691358]
[1758865713801,0.62199926,109280.0,109270.0,0.83164]
[1758865714203,0.62199926,109280.0,109270.0,0.64868104]
[1758865715307,0.62199926,109280.0,109270.0,0.28788104]
[1758865715915,0.62199926,109280.0,109260.0,0.08171133]
[1758865715916,1.64807284,109280.0,109260.0,0.08171133]
[1758865716212,0.0914688,109260.0,109250.0,0.09560133]
[1758865716403,0.88728954,109260.0,109250.0,0.01389]
[1758865716806,1.24808954,109260.0,109250.0,0.01389]
[1758865718406,1.64808954,109260.0,109250.0,0.01389]
[1758865718608,1.64808954,109260.0,109250.0,0.01489]
[1758865718808,1.72002145,109260.0,109250.0,0.01489]
[1758865719004,1.72926633,109260.0,109250.0,0.01489]
[1758865719215,2.09006633,109260.0,109250.0,0.01489]
[1758865719515,1.69006633,109260.0,109250.0,0.001]
[1758865720414,0.0914856,109240.0,109230.0,0.02499]
[1758865720715,1.3166856,109240.0,109230.0,0.02499]
[1758865721114,1.58226063,109240.0,109230.0,0.02499]
[1758865721810,1.60526063,109240.0,109230.0,0.02499]
[1758865722415,1.60526063,109240.0,109230.0,0.00389]
[1758865722916,1.60526063,109240.0,109230.0,0.02499]
[1758865724322,1.3396856,109240.0,109230.0,0.02499]
[1758865724623,1.60526063,109240.0,109230.0,0.02499]
[1758865728230,1.3396856,109240.0,109230.0,0.02499]
[1758865728431,1.60526063,109240.0,109230.0,0.02499]
[1758865731424,1.3396856,109240.0,109230.0,0.02499]
[1758865731625,1.60526063,109240.0,109230.0,0.02499]
[1758865731827,1.60526063,109240.0,109220.0,0.01389]
[1758865731828,0.0914939,109230.0,109220.0,0.03499]
[1758865732028,0.62264396,109230.0,109220.0,0.03499]
[1758865732839,0.35706893,109230.0,109220.0,0.03499]
[1758865733030,0.62264396,109230.0,109220.0,0.03499]
[1758865734035,0.62464396,109230.0,109220.0,0.03499]
[1758865735040,0.63764396,109230.0,109220.0,0.03499]
[1758865735834,0.28057503,109230.0,109220.0,0.03499]
[1758865736040,1.23766893,109230.0,109220.0,0.03499]
[1758865739237,1.23758893,109230.0,109220.0,0.03499]
[1758865740244,0.9720538,109230.0,109220.0,0.5264922]
[1758865740544,1.23762883,109230.0,109220.0,0.43499]
[1758865741043,1.86400386,109230.0,109210.0,0.01389]
[1758865741240,0.35707723,109220.0,109210.0,0.0364]
[1758865742741,0.36407723,109220.0,109210.0,0.0364]
[1758865744238,0.0995022,109220.0,109210.0,0.0364]
[1758865744435,0.36507723,109220.0,109210.0,0.0364]
[1758865744832,0.36507723,109220.0,109210.0,0.01389]
[1758865745034,0.36507723,109220.0,109210.0,0.03619]
[1758865745635,0.43904116,109220.0,109210.0,0.03619]
[1758865745948,0.17346613,109220.0,109210.0,0.03619]
[1758865746345,0.43904116,109220.0,109210.0,0.03619]
[1758865746844,0.79984116,109220.0,109210.0,0.03619]
[1758865747844,0.94936393,109220.0,109210.0,0.03619]
[1758865748043,1.21493896,109220.0,109210.0,0.03619]
[1758865748341,1.30676116,109220.0,109210.0,0.03619]
[1758865749744,1.29676116,109220.0,109210.0,0.03619]
[1758865749942,1.65756116,109220.0,109210.0,0.01389]
[1758865752046,2.06657016,109220.0,109210.0,0.01389]
[1758865753249,0.0915105,109210.0,109200.0,0.03619]
[1758865753446,0.35708553,109210.0,109200.0,0.03619]
[1758865754047,0.98346056,109210.0,109200.0,0.01389]
[1758865754248,0.98346056,109210.0,109190.0,0.04818627]
[1758865754249,0.091519,109200.0,109190.0,0.04818627]
[1758865754451,1.85366906,109200.0,109190.0,0.04818627]
[1758865755041,1.84766906,109200.0,109190.0,0.04818627]
[1758865755642,1.316519,109200.0,109190.0,0.04818627]
[1758865755843,1.316519,109200.0,109190.0,0.05018627]
[1758865755844,1.84766906,109200.0,109190.0,0.05018627]
[1758865756049,2.24766906,109200.0,109190.0,0.03888627]
[1758865756253,2.24766906,109200.0,109190.0,0.06118627]
[1758865756254,1.22113403,109200.0,109190.0,0.06118627]
[1758865756454,1.84750906,109200.0,109190.0,0.03888627]
[1758865756745,2.24750906,109200.0,109190.0,0.02499627]
[1758865756946,2.24750906,109200.0,109180.0,0.37469]
[1758865756947,0.0915273,109190.0,109180.0,0.01389]
[1758865757151,0.0915273,109190.0,109170.0,0.03623]
[1758865757152,0.0915356,109180.0,109170.0,0.03623]
[1758865757355,1.85452566,109180.0,109170.0,0.01393]
[1758865758151,1.85352566,109180.0,109170.0,0.01393]
[1758865758349,1.85352566,109180.0,109160.0,0.03623]
[1758865758350,0.091544,109170.0,109160.0,0.03623]
[1758865758552,0.98349406,109170.0,109160.0,0.03623]
[1758865758750,0.71491903,109170.0,109160.0,0.03623]
[1758865758951,0.26557503,109180.0,109170.0,0.105474]
[1758865759245,0.26557503,109180.0,109170.0,0.488574]
[1758865759653,1.13837503,109180.0,109170.0,0.488574]
[1758865759851,1.22991063,109180.0,109170.0,0.39703]
[1758865760558,1.22991063,109180.0,109170.0,0.488574]
[1758865761650,1.22991063,109180.0,109170.0,0.03623]
[1758865762452,1.23191063,109180.0,109170.0,0.03623]
[1758865762839,1.23251063,109180.0,109170.0,0.03623]
[1758865763151,1.25851063,109180.0,109170.0,0.03623]
[1758865763558,1.61931063,109180.0,109170.0,0.03623]
[1758865763742,0.8186788,109180.0,109170.0,0.03623]
[1758865763948,1.6921988,109180.0,109170.0,0.03623]
[1758865764153,1.6921988,109180.0,109160.0,0.01393]
[1758865764360,1.6921988,109180.0,109160.0,0.03535]
[1758865764361,0.98349406,109170.0,109160.0,0.03535]
[1758865764958,0.35711903,109170.0,109160.0,0.03535]
[1758865765151,0.62269406,109170.0,109160.0,0.03535]
[1758865765547,0.62269406,109170.0,109160.0,0.01393]
[1758865765548,0.98349406,109170.0,109160.0,0.01393]
[1758865765752,1.38349406,109170.0,109160.0,0.01393]
[1758865766255,1.38449406,109170.0,109160.0,0.01393]
[1758865766652,1.39649406,109170.0,109160.0,0.01393]
[1758865767557,1.40552105,109170.0,109160.0,0.01393]
[1758865768154,0.0915525,109160.0,109150.0,0.01393]
[1758865768459,1.23088753,109160.0,109150.0,0.01393]
[1758865769057,1.23088753,109160.0,109150.0,0.03535]
[1758865769259,1.23088753,109160.0,109150.0,0.03635]
[1758865769463,1.23888753,109160.0,109150.0,0.03635]
[1758865769661,0.9733125,109160.0,109150.0,0.03635]
[1758865769850,1.23888753,109160.0,109150.0,0.03635]
[1758865770053,1.23888753,109160.0,109150.0,0.01493]
[1758865770248,0.9733125,109160.0,109150.0,0.03635]
[1758865770458,1.23888753,109160.0,109150.0,0.03635]
[1758865772560,1.20882657,109160.0,109150.0,0.03635]
[1758865772760,1.20882657,109160.0,109150.0,0.01493]
[1758865772958,1.20882657,109160.0,109150.0,0.03635]
[1758865773160,1.20882657,109160.0,109150.0,0.01493]
[1758865773558,1.20882657,109160.0,109150.0,0.03635]
[1758865773957,1.20882657,109160.0,109150.0,0.03631]
[1758865774759,0.06949154,109160.0,109150.0,0.03631]
[1758865774965,0.88096,109160.0,109150.0,0.79344593]
[1758865775261,0.88096,109160.0,109150.0,0.5278709]
[1758865775462,0.008,109160.0,109150.0,0.5278709]
[1758865775765,0.008,109160.0,109150.0,0.8886709]
[1758865775955,1.14677503,109160.0,109150.0,0.8886709]
[1758865776262,0.8812,109160.0,109150.0,0.8886709]
[1758865776659,0.88112,109160.0,109150.0,1.24585877]
[1758865777553,0.88112,109160.0,109150.0,0.98028374]
[1758865777755,0.88112,109160.0,109150.0,1.24585877]